bitfinex/quotes_BTCUSD_20251224
["timestamp","ask_amount","ask_price","bid_price","bid_amount"]
[1766617353149,0.01146654,88025.0,88017.0,0.11805]
[1766617353571,0.00010614,88025.0,88017.0,0.11805]
[1766617356109,0.00010614,88025.0,88023.0,0.0050447]
[1766617359755,0.00010614,88025.0,88023.0,0.0044947]
[1766617360196,0.01136105,88020.0,88017.0,0.09750343]
[1766617360488,0.01136144,88017.0,88007.0,0.12945]
[1766617360689,0.01136169,88015.0,88007.0,0.12945]
[1766617361344,0.01136157,88016.0,88007.0,0.12945]
[1766617361517,0.01136118,88019.0,88015.0,0.118599]
[1766617361866,0.01136131,88018.0,88015.0,0.11805]
[1766617363340,0.01136157,88016.0,88008.0,0.11805]
[1766617363659,0.01136182,88014.0,88008.0,0.11805]
[1766617364057,0.01136169,88015.0,88008.0,0.11805]
[1766617364259,0.01136182,88014.0,88009.0,0.0114]
[1766617364485,0.01136208,88012.0,88006.0,0.01151]
[1766617364691,0.01136247,88009.0,87999.0,0.11463]
[1766617364937,0.22723852,88014.0,87996.0,0.0114]
[1766617364938,0.0113635,88001.0,87996.0,0.0114]
[1766617365134,0.01136376,87999.0,87996.0,0.0114]
[1766617365312,0.0113635,88001.0,87993.0,0.00011]
[1766617365313,0.01136363,88000.0,87993.0,0.00011]
[1766617365633,0.01136376,87999.0,87993.0,0.01151]
[1766617365867,0.01136376,87999.0,87984.0,0.11463]
[1766617365868,0.01136389,87998.0,87984.0,0.11463]
[1766617366065,0.01136402,87997.0,87985.0,0.0114]
[1766617366266,0.01136415,87996.0,87985.0,0.0114]
[1766617366473,0.01136428,87995.0,87985.0,0.0114]
[1766617366603,0.01136428,87995.0,87986.0,0.0114]
[1766617367009,0.01136415,87996.0,87986.0,0.0114]
[1766617367621,0.01136428,87995.0,87986.0,0.0114]
[1766617368041,0.0681846,87997.0,87986.0,0.0114]
[1766617368421,0.01136415,87996.0,87986.0,0.0114]
[1766617369022,0.01136389,87998.0,87986.0,0.12603]
[1766617369367,0.01136428,87995.0,87986.0,0.12603]
[1766617369775,0.01136441,87994.0,87986.0,0.12603]
[1766617370372,0.05682124,87996.0,87986.0,0.12603]
[1766617370373,0.01136415,87996.0,87986.0,0.12603]
[1766617370577,0.01136389,87998.0,87994.0,0.115179]
[1766617370795,0.01136402,87997.0,87994.0,0.115179]
[1766617371114,0.01136402,87997.0,87988.0,0.11463]
[1766617371521,0.01136415,87996.0,87988.0,0.11463]
[1766617371718,0.01136428,87995.0,87988.0,0.11463]
[1766617371929,0.01136402,87997.0,87988.0,0.11463]
[1766617372579,0.01136415,87996.0,87988.0,0.11463]
[1766617372888,0.01136402,87997.0,87988.0,0.11463]
[1766617373229,0.01136415,87996.0,87988.0,0.11463]
[1766617373430,0.01136428,87995.0,87988.0,0.11463]
[1766617373632,0.01136454,87993.0,87988.0,0.11463]
[1766617374461,0.01136454,87993.0,87987.0,0.0114]
[1766617374661,0.01136466,87992.0,87987.0,0.0114]
[1766617375216,0.01136492,87990.0,87987.0,0.0114]
[1766617375714,0.01136492,87990.0,87983.0,0.01151]
[1766617375873,0.01136492,87990.0,87983.0,0.01161616]
[1766617376070,0.01136492,87990.0,87983.0,0.00021616]
[1766617376821,0.01136505,87989.0,87983.0,0.00021616]
[1766617378480,0.01136518,87988.0,87983.0,0.00021616]
[1766617378718,0.01081618,87988.0,87983.0,0.00021616]
[1766617378921,0.01136505,87989.0,87983.0,0.00021616]
[1766617380184,0.01136518,87988.0,87983.0,0.00021616]
[1766617380387,0.01136531,87987.0,87983.0,0.00021616]
[1766617380763,0.01136544,87986.0,87983.0,0.00021616]
[1766617380994,0.05682838,87985.0,87983.0,1.6e-07]
[1766617383610,0.0114,87984.0,87983.0,1.6e-07]
[1766617384054,0.0114,87984.0,87959.0,0.01136893]
[1766617384055,0.01136932,87956.0,87934.0,3.38e-06]
[1766617384257,0.01136996,87951.0,87945.0,0.12084481]
[1766617384453,0.04548,87968.0,87945.0,0.12084481]
[1766617384454,0.01136828,87964.0,87952.0,0.12049]
[1766617384657,0.03049619,87988.0,87968.0,0.12049]
[1766617384658,0.0114,87974.0,87968.0,0.12049]
[1766617384862,0.02448503,87987.0,87970.0,0.12049]
[1766617385065,0.04090887,88006.0,87971.0,0.00058317]
[1766617385066,0.01136609,87981.0,87971.0,0.00058317]
[1766617385267,0.05684249,87963.0,87955.0,0.0114]
[1766617385513,0.0114,87980.0,87955.0,0.0114]
[1766617385514,0.0114,87971.0,87961.0,0.12049]
[1766617385803,0.0114,87971.0,87956.0,0.01136932]
[1766617385804,0.01136712,87973.0,87964.0,0.119941]
[1766617386003,0.06820792,87967.0,87964.0,0.119941]
[1766617386235,0.01136841,87963.0,87959.0,0.00011]
[1766617386429,0.06820893,87965.0,87959.0,0.00011]
[1766617386641,0.01136828,87964.0,87959.0,0.00011]
[1766617386838,0.01136841,87963.0,87959.0,0.1206]
[1766617387158,0.01136828,87964.0,87959.0,0.1206]
[1766617387340,0.01136906,87958.0,87952.0,0.12049]
[1766617387585,0.01136906,87958.0,87946.0,0.00011]
[1766617387587,0.01137009,87950.0,87946.0,0.00011]
[1766617387777,0.05684919,87952.0,87947.0,0.0114]
[1766617387778,0.01136996,87951.0,87947.0,0.0114]
[1766617388078,0.06822033,87951.0,87946.0,0.00011]
[1766617388281,0.01137022,87949.0,87946.0,0.00011]
[1766617389223,0.01137009,87950.0,87946.0,0.00011]
[1766617389630,0.01136996,87951.0,87946.0,0.00011]
[1766617389831,0.01137009,87950.0,87946.0,0.00011]
[1766617390677,0.01136996,87951.0,87946.0,0.00011]
[1766617390873,0.01137009,87950.0,87946.0,0.00011]
[1766617391146,0.05685306,87946.0,87937.0,0.0114]
[1766617391362,0.0114,87945.0,87934.0,3.38e-06]
[1766617391569,0.0114,87945.0,87939.0,0.12049]
[1766617391772,0.0114,87945.0,87934.0,3.38e-06]
[1766617391773,0.12082177,87984.0,87944.0,0.12049]
[1766617391774,0.01136919,87957.0,87944.0,0.12049]
[1766617391990,0.0114,87960.0,87945.0,0.0005835]
[1766617392200,0.01136906,87958.0,87946.0,0.12049]
[1766617392369,0.05684685,87956.0,87946.0,0.12049]
[1766617392618,0.05684685,87956.0,87938.0,0.0568576]
[1766617392619,0.0227688,87960.0,87928.0,1e-08]
[1766617392620,0.05453957,87947.0,87928.0,1e-08]
[1766617392816,0.05453957,87947.0,87863.0,0.1461]
[1766617392817,0.05453957,87947.0,87887.0,0.03386357]
[1766617392818,0.01137565,87907.0,87887.0,0.03386357]
[1766617393025,0.01729001,87912.0,87901.0,0.12049]
[1766617393026,0.005915,87912.0,87901.0,0.12049]
[1766617393233,0.005915,87912.0,87900.0,0.01137656]
[1766617393234,4.24e-06,87912.0,87910.0,0.12049]
[1766617393435,0.22746263,87927.0,87911.0,0.12049]
[1766617393764,0.05687388,87914.0,87911.0,0.119941]
[1766617394019,0.00010596,87914.0,87911.0,0.119941]
[1766617394214,0.06824983,87914.0,87911.0,0.119941]
[1766617394426,0.01137436,87917.0,87911.0,0.119941]
[1766617394707,0.01148384,87921.0,87911.0,0.12029463]
[1766617394872,1.17e-06,87918.0,87917.0,0.000444]
[1766617395039,0.01137358,87923.0,87917.0,0.000444]
[1766617395040,0.05686362,87930.0,87918.0,0.12049]
[1766617395242,0.22744072,87935.0,87918.0,0.12049]
[1766617395547,0.22744072,87935.0,87917.0,0.01144]
[1766617395548,0.01137281,87929.0,87920.0,0.12049]
[1766617395740,0.01137307,87927.0,87920.0,0.12049]
[1766617396059,0.01137332,87925.0,87920.0,0.12049]
[1766617396424,0.06824163,87923.0,87920.0,0.120385]
[1766617396590,0.06824163,87923.0,87911.0,0.00035363]
[1766617396591,0.01137475,87914.0,87911.0,0.00035363]
[1766617396767,0.01137475,87914.0,87912.0,0.01144]
[1766617396768,0.06824857,87914.0,87912.0,0.01144]
[1766617396970,0.06824857,87914.0,87912.0,0.01089]
[1766617397540,0.06824857,87914.0,87911.0,0.00035363]
[1766617397541,0.01137371,87922.0,87902.0,0.09367]
[1766617397542,0.01137578,87906.0,87902.0,0.09367]
[1766617397742,0.01137578,87906.0,87903.0,0.01144]
[1766617397743,0.01137591,87905.0,87903.0,0.01144]
[1766617398563,0.01118063,87906.0,87904.0,0.01144]
[1766617398759,0.01118063,87906.0,87905.0,0.00071449]
[1766617399188,0.00035385,87906.0,87905.0,0.00071449]
[1766617399408,3.85e-06,87906.0,87905.0,0.00071449]
[1766617399942,3.85e-06,87906.0,87904.0,0.01144]
[1766617399943,0.000549,87905.0,87904.0,0.01144]
[1766617400171,3.85e-06,87906.0,87904.0,0.01144]
[1766617400320,3.85e-06,87906.0,87901.0,0.01144]
[1766617400321,0.0113763,87902.0,87901.0,0.01144]
[1766617400523,0.06825631,87904.0,87901.0,0.01144]
[1766617400722,0.0682583,87902.0,87901.0,0.010891]
[1766617400949,0.0682583,87902.0,87894.0,0.00011]
[1766617400950,0.01137695,87897.0,87894.0,0.00011]
[1766617401295,0.01137695,87897.0,87895.0,0.01144]
[1766617401296,0.06826233,87897.0,87895.0,0.01144]
[1766617401518,0.01137656,87900.0,87877.0,0.00011]
[1766617401519,0.12515772,87891.0,87877.0,0.00011]
[1766617401721,0.01082924,87887.0,87878.0,0.01144]
[1766617401925,0.0568932,87884.0,87878.0,0.01144]
[1766617402128,0.06827033,87886.0,87884.0,0.0005468]
[1766617402379,0.01137863,87884.0,87878.0,0.01144]
[1766617402579,0.45494239,87924.0,87878.0,0.01144]
[1766617402798,0.01144,87899.0,87878.0,0.02281941]
[1766617402998,0.05688395,87899.0,87883.0,0.05947]
[1766617403204,0.01137695,87897.0,87891.0,0.000546]
[1766617403357,0.01137708,87896.0,87891.0,0.000546]
[1766617403565,0.01137721,87895.0,87884.0,0.01144]
[1766617403766,0.06826182,87897.0,87884.0,0.01144]
[1766617403988,0.34126543,87918.0,87896.0,0.03672]
[1766617404191,0.05687505,87912.0,87897.0,0.01144]
[1766617404391,0.34126543,87918.0,87897.0,0.01144]
[1766617404632,0.05687566,87912.0,87897.0,0.01144]
[1766617404944,0.01137539,87909.0,87897.0,0.01144]
[1766617405298,0.01137552,87908.0,87897.0,0.01144]
[1766617405495,0.01137565,87907.0,87897.0,0.01168896]
[1766617405933,0.01137539,87909.0,87897.0,0.01168896]
[1766617406138,0.01101302,87908.0,87897.0,0.01168896]
[1766617406722,0.01137565,87907.0,87897.0,0.01168896]
[1766617407506,0.01137384,87921.0,87907.0,0.01192165]
[1766617407708,0.01137475,87914.0,87908.0,0.01144]
[1766617407943,2.22e-06,87917.0,87908.0,0.01144]
[1766617408159,0.01137462,87915.0,87908.0,0.01144]
[1766617408661,2.22e-06,87917.0,87908.0,0.01144]
[1766617409100,0.01137449,87916.0,87908.0,0.01144]
[1766617409302,0.01137658,87917.0,87908.0,0.01144]
[1766617409552,2.22e-06,87917.0,87908.0,0.01144]
[1766617410474,0.05686849,87923.0,87908.0,0.01144]
[1766617410475,0.01137229,87933.0,87918.0,0.01137423]
[1766617410666,0.05686325,87931.0,87920.0,0.000546]
[1766617410869,0.01137371,87922.0,87919.0,0.01144]
[1766617411111,0.01137371,87922.0,87909.0,0.10922586]
[1766617411112,0.01137371,87922.0,87909.0,0.06370586]
[1766617411272,0.01137384,87921.0,87910.0,0.05696]
[1766617411472,0.01137371,87922.0,87910.0,0.05696]
[1766617411732,0.01137501,87912.0,87898.0,0.01137682]
[1766617411909,0.01137501,87912.0,87908.0,0.01144]
[1766617411910,0.06825064,87912.0,87908.0,0.01144]
[1766617412116,0.01137514,87911.0,87908.0,0.01144]
[1766617412879,0.01137514,87911.0,87908.0,0.010887]
[1766617413512,0.01137488,87913.0,87908.0,0.010887]
[1766617413712,0.01137475,87914.0,87908.0,0.010887]
[1766617413909,0.01137462,87915.0,87908.0,0.010887]
[1766617414515,0.01137475,87914.0,87908.0,0.010887]
[1766617414666,0.11288,87916.0,87908.0,0.010887]
[1766617414866,0.1242532,87926.0,87916.0,0.00055]
[1766617415067,0.11288,87922.0,87910.0,0.01137527]
[1766617415284,0.11288,87922.0,87909.0,0.01137539]
[1766617415609,0.11288,87922.0,87908.0,0.02226252]
[1766617415955,0.01137384,87921.0,87908.0,0.02226252]
[1766617416153,0.01137384,87921.0,87908.0,0.010887]
[1766617416352,0.0113741,87919.0,87908.0,0.010887]
[1766617416795,0.01137462,87915.0,87908.0,0.010887]
[1766617417022,0.01137449,87916.0,87908.0,0.010887]
[1766617417406,0.01137475,87914.0,87908.0,0.010887]
[1766617417638,0.01137462,87915.0,87908.0,0.010887]
[1766617418246,0.01137462,87915.0,87904.0,0.00011]
[1766617418448,0.05687093,87919.0,87897.0,0.01162591]
[1766617418449,0.11288,87904.0,87897.0,0.00024896]
[1766617418646,0.01137565,87907.0,87904.0,0.001099]
[1766617418857,0.01137552,87908.0,87904.0,0.001099]
[1766617419072,0.05687893,87906.0,87904.0,0.001099]
[1766617419280,0.05687893,87906.0,87897.0,0.00024896]
[1766617419281,0.01137604,87904.0,87897.0,0.00024896]
[1766617419708,0.01137617,87903.0,87897.0,0.01168896]
[1766617420171,0.0113763,87902.0,87897.0,0.01168896]
[1766617420402,0.01137617,87903.0,87897.0,0.01168896]
[1766617422183,0.0113763,87902.0,87897.0,0.01168896]
[1766617423346,0.01105577,87902.0,87897.0,0.01168896]
[1766617424270,0.06825684,87904.0,87897.0,0.01168896]
[1766617424832,0.01137656,87900.0,87897.0,0.01168896]
[1766617424966,0.06825965,87900.0,87897.0,0.01168896]
[1766617425184,0.01137682,87898.0,87897.0,0.01144]
[1766617428202,0.01137682,87898.0,87895.0,0.01144]
[1766617428425,0.01173067,87898.0,87895.0,0.01144]
[1766617428942,0.05688541,87896.0,87894.0,0.00011]
[1766617429139,0.01173067,87898.0,87879.0,0.05696]
[1766617429140,0.0113785,87885.0,87879.0,0.05696]
[1766617429352,0.01137837,87886.0,87879.0,0.05696]
[1766617429554,0.01137824,87887.0,87879.0,0.05696]
[1766617429760,0.01137824,87887.0,87886.0,0.000549]
[1766617429926,0.01137811,87888.0,87879.0,0.05696]
[1766617430446,0.0113785,87885.0,87879.0,0.05696]
[1766617431001,0.01137876,87883.0,87879.0,0.05696]
[1766617431116,0.01137915,87880.0,87878.0,0.01144]
[1766617431328,0.05689706,87878.0,87871.0,0.01144]
[1766617432250,0.05689706,87878.0,87850.0,0.0004]
[1766617432251,0.12382,87866.0,87850.0,0.0004]
[1766617432467,0.05696,87880.0,87850.0,0.0004]
[1766617432468,0.0113785,87885.0,87868.0,0.0113807]
[1766617432673,0.05689576,87880.0,87866.0,0.01144]
[1766617432879,0.01137928,87879.0,87866.0,0.01144]
[1766617433057,0.01144,87884.0,87867.0,0.01138083]
[1766617433058,0.01137889,87882.0,87867.0,0.01138083]
[1766617433298,0.01137889,87882.0,87834.0,0.01109453]
[1766617433299,0.12382,87867.0,87834.0,0.01109453]
[1766617433522,0.12382,87845.0,87831.0,0.0569275]
[1766617433726,0.12382,87845.0,87817.0,0.06370586]
[1766617433727,0.00424277,87843.0,87839.0,0.06370586]
[1766617434137,0.06830455,87842.0,87839.0,0.06370586]
[1766617434319,0.01562671,87843.0,87839.0,0.06370586]
[1766617434570,0.00424277,87843.0,87839.0,0.06370586]
[1766617434777,3.41e-06,87843.0,87839.0,0.06370586]
[1766617434979,3.41e-06,87843.0,87842.0,0.0017099]
[1766617435941,0.01138109,87865.0,87849.0,0.01138316]
[1766617436143,1.09e-06,87865.0,87855.0,0.06370586]
[1766617436342,0.01138135,87863.0,87855.0,0.00011]
[1766617436597,0.01137928,87879.0,87857.0,0.07508799]
[1766617436793,0.01138018,87872.0,87858.0,0.01148]
[1766617437003,0.01138031,87871.0,87858.0,0.01148]
[1766617437205,0.0113807,87868.0,87858.0,0.01148]
[1766617437374,0.01138057,87869.0,87858.0,0.01148]
[1766617437952,0.01138044,87870.0,87858.0,0.01148]
[1766617438329,0.01138057,87869.0,87858.0,0.01148]
[1766617438758,0.0113807,87868.0,87858.0,0.01148]
[1766617438975,0.01138083,87867.0,87858.0,0.01148]
[1766617439305,0.06828324,87870.0,87858.0,0.01148]
[1766617439503,0.0113807,87868.0,87858.0,0.01148]
[1766617439729,0.01138044,87870.0,87858.0,0.01148]
[1766617439931,0.01138018,87872.0,87858.0,0.01148]
[1766617439932,0.06828139,87872.0,87858.0,0.01148]
[1766617440134,0.0114898,87875.0,87860.0,0.01138174]
[1766617440776,0.00011,87875.0,87865.0,0.01138109]
[1766617440992,0.05689293,87885.0,87865.0,0.01138109]
[1766617440993,0.01137889,87882.0,87866.0,0.02286096]
[1766617441193,0.01137863,87884.0,87868.0,0.0113807]
[1766617441345,0.06827058,87886.0,87870.0,0.01138044]
[1766617441528,0.01137889,87882.0,87869.0,0.01138057]
[1766617441988,0.01137889,87882.0,87868.0,0.0113807]
[1766617442191,0.01137928,87879.0,87866.0,0.01148]
[1766617442337,0.000549,87868.0,87866.0,0.01148]
[1766617442738,0.01138018,87872.0,87866.0,0.01148]
[1766617442929,0.01138044,87870.0,87866.0,0.01148]
[1766617443339,0.01138031,87871.0,87866.0,0.01148]
[1766617443542,0.01138122,87864.0,87856.0,0.00024931]
[1766617443769,0.01138148,87862.0,87857.0,0.01148]
[1766617443971,0.01138135,87863.0,87857.0,0.01148]
[1766617444200,0.06828746,87864.0,87857.0,0.01148]
[1766617444201,0.01138122,87864.0,87857.0,0.01148]
[1766617444404,0.01138109,87865.0,87857.0,0.01148]
[1766617444629,0.06828392,87869.0,87857.0,0.01148]
[1766617444784,0.1251498,87875.0,87859.0,0.01138187]
[1766617445164,0.01137941,87878.0,87859.0,0.01138187]
[1766617445165,0.06827669,87878.0,87861.0,0.01138161]
[1766617445367,0.01137941,87878.0,87866.0,0.00011]
[1766617445581,0.01148,87879.0,87866.0,0.01159]
[1766617445767,0.01137876,87883.0,87869.0,0.01138057]
[1766617445986,0.05689126,87887.0,87870.0,0.06370586]
[1766617446169,0.01137837,87886.0,87871.0,0.01138031]
[1766617446399,0.01137863,87884.0,87870.0,0.0750863]
[1766617446593,0.01137863,87884.0,87871.0,0.01138031]
[1766617447031,0.0113785,87885.0,87871.0,0.01138031]
[1766617447467,0.01137863,87884.0,87871.0,0.01138031]
[1766617447669,0.01137863,87884.0,87870.0,0.0750863]
[1766617447871,0.01137863,87884.0,87871.0,0.01138031]
[1766617448001,0.01137863,87884.0,87870.0,0.06370586]
[1766617448207,0.01137876,87883.0,87870.0,0.06370586]
[1766617448405,0.01137889,87882.0,87870.0,0.06370586]
[1766617448676,0.01137902,87881.0,87870.0,0.06370586]
[1766617448825,0.01137889,87882.0,87870.0,0.06370586]
[1766617449030,0.06827269,87883.0,87870.0,0.06370586]
[1766617449031,0.01137876,87883.0,87870.0,0.06370586]
[1766617449232,0.01137889,87882.0,87870.0,0.06370586]
[1766617449763,0.01110865,87882.0,87870.0,0.06370586]
[1766617449959,0.01137902,87881.0,87870.0,0.06370586]
[1766617450383,0.01137915,87880.0,87870.0,0.06370586]
[1766617450550,0.06827422,87881.0,87870.0,0.06370586]
[1766617450551,0.01137902,87881.0,87870.0,0.06370586]
[1766617451702,0.01137928,87879.0,87870.0,0.06370586]
[1766617451841,0.01137928,87879.0,87866.0,0.01159]
[1766617451842,0.01137954,87877.0,87866.0,0.01159]
[1766617452048,0.000439,87866.0,87856.0,0.00024931]
[1766617452245,0.06828668,87865.0,87857.0,0.01148]
[1766617452447,0.01138161,87861.0,87857.0,0.01148]
[1766617452688,0.01138174,87860.0,87857.0,0.01148]
[1766617452894,0.01138161,87861.0,87857.0,0.01148]
[1766617453308,0.385771,88017.0,87857.0,0.01148]
[1766617453309,0.01138083,87867.0,87861.0,0.00011]
[1766617453469,0.01138096,87866.0,87861.0,0.00011]
[1766617453671,0.01138096,87866.0,87857.0,0.01148]
[1766617454095,0.01138135,87863.0,87857.0,0.01148]
[1766617454298,0.01138122,87864.0,87857.0,0.01148]
[1766617454572,0.01138148,87862.0,87857.0,0.01148]
[1766617454822,0.01138174,87860.0,87857.0,0.011041]
[1766617455485,0.01138187,87859.0,87858.0,0.01148]
[1766617455720,0.01138161,87861.0,87858.0,0.01148]
[1766617455721,0.01138161,87861.0,87859.0,0.000549]
[1766617455927,0.01138161,87861.0,87858.0,0.01093]
[1766617456799,0.01138148,87862.0,87858.0,0.01093]
[1766617457010,0.06828873,87863.0,87858.0,0.01093]
[1766617457301,0.06828626,87866.0,87858.0,0.01093]
[1766617457302,0.01138122,87864.0,87863.0,0.00055]
[1766617457501,0.05690547,87865.0,87863.0,0.00055]
[1766617457734,0.01138161,87861.0,87858.0,0.01093]
[1766617457887,0.05690652,87864.0,87858.0,0.01093]
[1766617457888,0.01138135,87863.0,87858.0,0.01093]
[1766617458548,0.01138148,87862.0,87858.0,0.01093]
[1766617458754,0.06828772,87864.0,87858.0,0.01093]
[1766617458955,0.01138109,87865.0,87862.0,0.00055]
[1766617459283,0.01138109,87865.0,87858.0,0.01093]
[1766617459284,0.01138122,87864.0,87858.0,0.01093]
[1766617459493,0.0569051,87866.0,87858.0,0.01093]
[1766617459686,0.01138109,87865.0,87858.0,0.01093]
[1766617459902,0.11377,87869.0,87865.0,0.00055]
[1766617460106,0.0113807,87868.0,87865.0,0.00055]
[1766617460305,0.0113807,87868.0,87858.0,0.01093]
[1766617460306,0.01138096,87866.0,87858.0,0.01093]
[1766617460860,0.01138044,87870.0,87858.0,0.01093]
[1766617461028,0.01138057,87869.0,87866.0,0.00055]
[1766617461233,0.06828158,87872.0,87866.0,0.00055]
[1766617461409,0.01137993,87874.0,87858.0,0.022312]
[1766617461609,0.0113798,87875.0,87858.0,0.022312]
[1766617461610,0.0113798,87875.0,87860.0,0.01138174]
[1766617461809,0.0113798,87875.0,87861.0,0.01138161]
[1766617462066,0.01137967,87876.0,87860.0,0.01138174]
[1766617462178,0.01137941,87878.0,87866.0,0.00011]
[1766617462386,0.12525,87879.0,87866.0,0.00011]
[1766617462387,0.01148,87879.0,87867.0,0.06370586]
[1766617462582,0.01137954,87877.0,87867.0,0.06370586]
[1766617462825,0.02285928,87879.0,87866.0,0.00069455]
[1766617463027,0.01148,87879.0,87867.0,0.06429037]
[1766617463228,0.01137941,87878.0,87867.0,0.06429037]
[1766617463383,0.01137915,87880.0,87867.0,0.06370586]
[1766617463795,0.01137928,87879.0,87867.0,0.06370586]
[1766617464802,0.02285889,87882.0,87867.0,0.06370586]
[1766617465008,0.02285889,87882.0,87867.0,0.07508669]
[1766617465009,0.01137915,87880.0,87867.0,0.07508669]
[1766617465414,0.01137915,87880.0,87867.0,0.06370586]
[1766617465847,0.0682761,87879.0,87867.0,0.06370586]
[1766617466068,0.01137915,87880.0,87867.0,0.06370586]
[1766617466364,0.01137915,87880.0,87867.0,0.07508669]
[1766617466983,0.01148,87882.0,87867.0,0.07508669]
[1766617467136,0.0113785,87885.0,87867.0,0.07508669]
[1766617467137,0.01148,87885.0,87869.0,0.01138057]
[1766617467313,0.01148837,87886.0,87872.0,0.01138018]
[1766617467516,0.01148837,87886.0,87873.0,0.01148]
[1766617467713,0.0113785,87885.0,87873.0,0.01148]
[1766617469129,0.01148837,87886.0,87873.0,0.01148]
[1766617469347,0.00011,87886.0,87873.0,0.02286005]
[1766617469588,0.01137772,87891.0,87873.0,0.02286005]
[1766617469589,0.01137798,87889.0,87886.0,0.00011]
[1766617469787,0.01137811,87888.0,87879.0,0.01144]
[1766617469996,0.06826681,87891.0,87879.0,0.01144]
[1766617470340,0.02281734,87894.0,87888.0,0.00044]
[1766617470488,0.01137747,87893.0,87881.0,0.06370586]
[1766617470851,0.01137759,87892.0,87881.0,0.06370586]
[1766617471048,0.0114499,87893.0,87881.0,0.06370586]
[1766617473032,0.01137785,87890.0,87879.0,0.01144]
[1766617473534,0.01137798,87889.0,87879.0,0.01144]
[1766617473770,0.01137785,87890.0,87879.0,0.01144]
[1766617474542,0.01137798,87889.0,87879.0,0.01144]
[1766617474878,0.01137785,87890.0,87879.0,0.01144]
[1766617475366,0.01137798,87889.0,87879.0,0.01144]
[1766617475954,0.01137772,87891.0,87879.0,0.01144]
[1766617476156,0.01137785,87890.0,87879.0,0.01144]
[1766617476335,0.01137772,87891.0,87879.0,0.01144]
[1766617477324,7.243e-05,87893.0,87880.0,0.01137915]
[1766617477552,0.01137759,87892.0,87879.0,0.01144]
[1766617477755,0.0114499,87893.0,87879.0,0.02281928]
[1766617477957,0.01137759,87892.0,87879.0,0.01144]
[1766617478383,0.01137785,87890.0,87879.0,0.01144]
[1766617478758,0.01137772,87891.0,87879.0,0.01144]
[1766617481521,0.01137759,87892.0,87879.0,0.01144]
[1766617482128,0.01137772,87891.0,87879.0,0.01144]
[1766617482332,0.01137759,87892.0,87879.0,0.01144]
[1766617482536,0.01137772,87891.0,87879.0,0.01144]
[1766617483141,0.01137824,87887.0,87879.0,0.01144]
[1766617483673,0.01137824,87887.0,87854.0,0.01138252]
[1766617483674,0.01138031,87871.0,87854.0,0.01138252]
[1766617483880,0.01138031,87871.0,87839.0,0.06370586]
[1766617483881,0.01138135,87863.0,87852.0,0.04552]
[1766617484079,0.01138096,87866.0,87852.0,0.01138278]
[1766617484274,0.01138057,87869.0,87863.0,0.000549]
[1766617484452,0.01138044,87870.0,87863.0,0.000549]
[1766617484824,0.01138044,87870.0,87857.0,0.02282213]
[1766617485059,7.24e-05,87870.0,87858.0,0.011382]
[1766617485264,7.24e-05,87870.0,87859.0,0.01138187]
[1766617485472,7.24e-05,87870.0,87858.0,0.011382]
[1766617485680,0.13000031,87871.0,87858.0,0.011382]
[1766617485807,0.01137915,87880.0,87871.0,0.001027]
[1766617486012,0.07971311,87883.0,87871.0,0.001027]
[1766617486329,0.01137928,87879.0,87870.0,0.01144]
[1766617486512,0.01137954,87877.0,87870.0,0.01144]
[1766617486713,0.06827612,87879.0,87870.0,0.01144]
[1766617486714,0.01137941,87878.0,87870.0,0.01144]
[1766617487246,0.01137954,87877.0,87870.0,0.01144]
[1766617487412,0.01137941,87878.0,87870.0,0.01144]
[1766617487607,0.01137941,87878.0,87856.0,0.00024931]
[1766617487608,0.01138161,87861.0,87856.0,0.00024931]
[1766617488213,0.06829012,87861.0,87856.0,0.00024931]
[1766617488408,0.05690917,87860.0,87856.0,0.00024931]
[1766617488610,0.12467135,87863.0,87839.0,0.06370586]
[1766617488611,0.06829796,87851.0,87839.0,0.06370586]
[1766617488834,0.06829796,87851.0,87848.0,0.00011]
[1766617488835,0.01138303,87850.0,87848.0,0.00011]
[1766617489111,0.06829796,87851.0,87848.0,0.00035889]
[1766617489112,0.06829745,87851.0,87848.0,0.00035889]
[1766617489711,0.11329,87853.0,87848.0,0.00035889]
[1766617490142,0.01138161,87861.0,87848.0,0.01179889]
[1766617490338,0.01138148,87862.0,87853.0,0.06370586]
[1766617490561,0.057014,87868.0,87853.0,0.06370586]
[1766617490906,0.05690564,87870.0,87868.0,0.000549]
[1766617491022,0.05690564,87870.0,87860.0,0.00011]
[1766617491023,3.39e-06,87870.0,87860.0,0.00011]
[1766617491468,0.01138383,87870.0,87860.0,0.00011]
[1766617491645,0.01138096,87866.0,87860.0,0.00011]
[1766617491845,0.01138083,87867.0,87860.0,0.00011]
[1766617492113,0.01138057,87869.0,87860.0,0.0001824]
[1766617492267,0.0113807,87868.0,87860.0,0.0001824]
[1766617492503,0.01138083,87867.0,87860.0,0.0001824]
[1766617492694,0.01138096,87866.0,87860.0,0.0001824]
[1766617493295,0.01138135,87863.0,87860.0,4e-07]
[1766617493887,0.12467148,87862.0,87859.0,4e-07]
[1766617494090,0.1133961,87862.0,87859.0,4e-07]
[1766617494918,0.1133961,87862.0,87853.0,0.01144]
[1766617498570,0.1133961,87862.0,87853.0,0.02282265]
[1766617498917,0.102468,87862.0,87854.0,0.01138252]
[1766617499124,0.102287,87862.0,87853.0,0.02282265]
[1766617499379,0.02282057,87869.0,87854.0,0.01138252]
[1766617499523,0.01144,87869.0,87853.0,0.07973543]
[1766617499728,0.01144,87869.0,87857.0,0.01138213]
[1766617500142,0.0113807,87868.0,87854.0,0.01138252]
[1766617500499,0.02282057,87869.0,87855.0,0.01138239]
[1766617500630,0.02282057,87869.0,87853.0,0.0115461]
[1766617500631,0.01138135,87863.0,87853.0,0.0115461]
[1766617501031,0.01138187,87859.0,87853.0,0.0109971]
[1766617501282,0.01138213,87857.0,87852.0,0.01144]
[1766617501462,0.01148825,87857.0,87852.0,0.01144]
[1766617501662,0.00010612,87857.0,87852.0,0.01144]
[1766617501861,0.01148825,87857.0,87852.0,0.01144]
[1766617502062,0.01148825,87857.0,87848.0,0.00035889]
[1766617502241,0.00010612,87857.0,87849.0,0.01144]
[1766617502722,0.01148825,87857.0,87849.0,0.01144]
[1766617503226,0.00010612,87857.0,87849.0,0.01144]
[1766617503640,1.2e-07,87857.0,87849.0,0.01144]
[1766617503883,1.2e-07,87857.0,87849.0,0.02282316]
[1766617504466,0.01138225,87857.0,87849.0,0.01144]
[1766617505088,1.2e-07,87857.0,87849.0,0.01144]
[1766617508715,1.2e-07,87857.0,87848.0,0.00035889]
[1766617510529,0.01138225,87857.0,87848.0,0.00035889]
[1766617510908,0.01138226,87856.0,87848.0,0.00035889]